[Event "Turkish Youth Championship 2024"]
[Site "Samsun"]
[Date "2024.05.21"]
[Round "6"]
[White "Apaydin, Mehmet Kagan"]
[Black "Buyuk, Ecrin Efsa"]
[Result "0-1"]
[ECO "B10"]
[WhiteElo "1650"]
[BlackElo "1892"]
[Annotator "NA COMBH"]
[PlyCount "160"]
[EventDate "2024.05.18"]
[EventType "swiss"]
[EventCountry "TUR"]
[SourceTitle "playchess.com"]
[Source "ChessBase"]
[SourceQuality "1"]
[TimeControl "5400+30"]

1. e4 {[%emt 0:01:00]} c6 {[%emt 0:01:00]} 2. Nf3 {[%emt 0:00:00]} d5 {[%emt 0:00:00]} 3. d3 {[%emt 0:00:00]} Bg4 {[%emt 0:05:00]} 4. Nbd2 {[%emt 0:03:30]} e6 {[%emt 0:04:30]} 5. h3 {[%emt 0:01:30]} Bh5 {[%emt 0:00:30]} 6. Be2 {[%emt 0:00:00] B10: Caro-Kann: 2 d3 and 2 c4.} Be7 {[%emt 0:03:30]} 7. O-O {[%emt 0:02:00]} Nf6 {[%emt 0:01:30]} 8. Ne5 {[%emt 0:03:30]} Bxe2 {[%emt 0:01:30]} 9. Qxe2 {[%emt 0:00:30]} O-O {[%emt 0:01:30]} 10. Ndf3 {[%emt 0:02:30]} Qc7 {[%emt 0:10:30]} 11. Bf4 {[%emt 0:02:30]} Bd6 {[%emt 0:00:30]} 12. exd5 {[%emt 0:01:30]} exd5 {[%emt 0:07:30]} 13. d4 {[%emt 0:03:30]} Ne4 {[%emt 0:03:30]} 14. Nd2 {[%emt 0:06:30]} f6 {[%emt 0:09:30]} 15. Nxe4 {[%emt 0:03:30]} dxe4 {[%emt 0:00:30]} 16. Qc4+ {[%emt 0:00:30]} Kh8 {[%emt 0:00:00]} 17. Nf7+ {[%emt 0:00:00]} Qxf7 {[%emt 0:02:00]} 18. Qxf7 {[%emt 0:00:00]} Rxf7 {[%emt 0:00:00]} 19. Bxd6 {[%emt 0:00:30]} Na6 {[%emt 0:05:00]} 20. c3 {[%emt 0:02:30]} Rd8 {[%emt 0:03:30]} 21. Ba3 {[%emt 0:02:30]} Nc7 {[%emt 0:00:30]} 22. Rae1 {[%emt 0:01:30]} f5 {[%emt 0:02:30]} 23. f3 {[%emt 0:01:30]} exf3 {[%emt 0:00:30]} 24. Rxf3 {[%emt 0:00:00]} g6 {[%emt 0:03:30]} 25. Rfe3 {[%emt 0:01:00]} Kg7 {[%emt 0:04:30]} 26. Re7 {[%emt 0:01:30]} Rd7 {[%emt 0:00:30]} 27. R7e2 {[%emt 0:01:30]} Nd5 {[%emt 0:07:30]} 28. c4 {[%emt 0:04:30]} Nf6 {[%emt 0:00:00]} 29. Rd1 {[%emt 0:00:30]} Ne4 {[%emt 0:04:00]} 30. Re3 {[%emt 0:00:30]} Rd8 {[%emt 0:00:30]} 31. b3 {[%emt 0:00:30]} Rfd7 {[%emt 0:00:40]} 32. d5 {[%emt 0:02:30]} cxd5 {[%emt 0:01:11]} 33. Red3 {[%emt 0:00:00]} Kf7 {[%emt 0:04:05]} 34. cxd5 {[%emt 0:02:00]} Nf6 {[%emt 0:00:27]} 35. d6 {[%emt 0:04:30]} Ne4 $15 {[%emt 0:00:06]} 36. g4 {[%emt 0:21:30]} Ke6 {[%emt 0:02:32]} 37. Re1 {[%emt 0:02:30]} Rc8 {[%emt 0:01:17]} 38. gxf5+ {[%emt 0:03:30]} gxf5 {[%emt 0:00:02]} 39. Rg3 {[%emt 0:00:00]} a5 {[%emt 0:03:37]} 40. Re2 {[%emt 0:01:00]} b5 {[%emt 0:00:24]} 41. Bb2 {[%emt 0:01:30]} Rxd6 {[%emt 0:01:09]} 42. Rg7 {[%emt 0:00:30]} Rd7 {[%emt 0:00:28]} 43. Reg2 {[%emt 0:00:30]} Rcd8 {[%emt 0:00:58]} 44. Rg8 {[%emt 0:01:30]} Rd1+ {[%emt 0:01:10]} 45. Kh2 {[%emt 0:00:37]} Rxg8 {[%emt 0:00:02]} 46. Rxg8 {[%emt 0:00:23]} Rd2+ {[%emt 0:03:52]} 47. Rg2 {[%emt 0:00:30]} Rxg2+ {[%emt 0:01:09]} 48. Kxg2 {[%emt 0:00:00]} f4 {[%emt 0:00:05]} 49. Kf3 {[%emt 0:01:00]} Kf5 {[%emt 0:00:03]} 50. h4 {[%emt 0:00:30]} Nc5 {[%emt 0:00:26]} 51. Bd4 {[%emt 0:03:30]} Nd3 {[%emt 0:04:18]} 52. a4 {[%emt 0:01:05]} bxa4 {[%emt 0:00:08]} 53. bxa4 {[%emt 0:00:00]} Ne5+ {[%emt 0:00:15]} 54. Kf2 {[%emt 0:00:05]} Ke4 {[%emt 0:00:32]} 55. Bb6 {[%emt 0:00:22]} Nc4 {[%emt 0:00:28]} 56. Bc7 {[%emt 0:00:27]} h5 {[%emt 0:00:29]} 57. Bd8 {[%emt 0:00:10]} Ke5 {[%emt 0:00:59]} 58. Kf3 {[%emt 0:00:12]} Nd2+ {[%emt 0:00:13]} 59. Ke2 {[%emt 0:00:30]} Nc4 {[%emt 0:00:48]} 60. Kf3 {[%emt 0:00:18]} Kf5 {[%emt 0:00:39]} 61. Bc7 {[%emt 0:00:29]} Ne5+ {[%emt 0:00:10]} 62. Kf2 {[%emt 0:00:18]} Ke4 {[%emt 0:02:29]} 63. Bxa5 {[%emt 0:00:38]} Nd3+ {[%emt 0:00:01]} 64. Ke2 {[%emt 0:01:14]} Nc5 {[%emt 0:00:09]} 65. Bc7 {[%emt 0:01:00]} Nxa4 {[%emt 0:00:05]} 66. Bd8 {[%emt 0:00:19]} Nc5 {[%emt 0:00:11]} 67. Bg5 {[%emt 0:02:37]} Ne6 {[%emt 0:00:03]} 68. Be7 {[%emt 0:07:42]} Kf5 {[%emt 0:00:09]} 69. Kf3 {[%emt 0:00:48]} Nd4+ {[%emt 0:00:04]} 70. Kf2 {[%emt 0:00:32]} Kg4 {[%emt 0:00:04]} 71. Bg5 {[%emt 0:01:30]} Nf5 {[%emt 0:00:14]} 72. Bxf4 {[%emt 0:00:54]} Kxf4 {[%emt 0:00:05]} 73. Kg2 {[%emt 0:00:00]} Kg4 {[%emt 0:00:30]} 74. Kh2 {[%emt 0:00:00]} Kxh4 {[%emt 0:00:04]} 75. Kh1 {[%emt 0:00:01]} Kg3 {[%emt 0:00:08]} 76. Kg1 {[%emt 0:00:13]} h4 {[%emt 0:00:10]} 77. Kh1 {[%emt 0:00:05]} h3 {[%emt 0:00:08]} 78. Kg1 {[%emt 0:00:31]} Ne3 {[%emt 0:00:08]} 79. Kh1 {[%emt 0:00:00]} Ng4 {[%emt 0:00:01]} 80. Kg1 {[%emt 0:00:16]} h2+ {[%emt 0:00:04]} 0-1

[Event "Turkish Youth Championship 2024"]
[Site "Samsun"]
[Date "2024.05.21"]
[Round "6"]
[White "Ergin, Hasan Kaan"]
[Black "Tonoglu, Engin Erdem"]
[Result "1/2-1/2"]
[ECO "C97"]
[WhiteElo "1632"]
[BlackElo "1691"]
[Annotator "NA COMBH"]
[PlyCount "139"]
[EventDate "2024.05.18"]
[EventType "swiss"]
[EventCountry "TUR"]
[SourceTitle "playchess.com"]
[Source "ChessBase"]
[SourceQuality "1"]
[TimeControl "5400+30"]

1. e4 {[%emt 0:01:00]} e5 {[%emt 0:01:00]} 2. Nf3 {[%emt 0:00:00]} Nc6 {[%emt 0:00:00]} 3. Bb5 {[%emt 0:00:00]} a6 {[%emt 0:00:00]} 4. Ba4 {[%emt 0:00:30]} Nf6 {[%emt 0:00:30]} 5. O-O {[%emt 0:00:30]} Be7 {[%emt 0:00:30]} 6. Re1 {[%emt 0:00:30]} b5 {[%emt 0:00:30]} 7. Bb3 {[%emt 0:00:30]} d6 {[%emt 0:00:30]} 8. c3 {[%emt 0:00:00]} Na5 {[%emt 0:00:30]} 9. Bc2 {[%emt 0:00:00]} c5 {[%emt 0:00:30]} 10. h3 {[%emt 0:00:00]} O-O {[%emt 0:02:30]} 11. d4 {[%emt 0:01:00]} Qc7 {[%emt 0:02:30]} 12. Nbd2 {[%emt 0:00:30]} Bb7 {[%emt 0:01:30]} 13. d5 {[%emt 0:01:30]} c4 {[%emt 0:01:30]} 14. Nf1 {[%emt 0:01:30]} Rfe8 {[%emt 0:04:30]} 15. Ng3 {[%emt 0:07:30]} Bc8 {[%emt 0:03:30]} 16. Bg5 {[%emt 0:04:30]} h6 {[%emt 0:03:30]} 17. Bd2 {[%emt 0:01:30]} Nb7 {[%emt 0:03:30]} 18. Nh2 {[%emt 0:12:30]} Bd7 {[%emt 0:17:30]} 19. Nh5 {[%emt 0:03:30]} Nc5 {[%emt 0:03:30]} 20. Nxf6+ {[%emt 0:02:30]} Bxf6 {[%emt 0:00:30]} 21. Qh5 {[%emt 0:01:30]} Qd8 {[%emt 0:04:30]} 22. Be3 {[%emt 0:04:30]} Rc8 {[%emt 0:00:30]} 23. Bxc5 {[%emt 0:13:30]} Rxc5 {[%emt 0:00:30]} 24. a4 {[%emt 0:00:30]} Qb6 {[%emt 0:03:30]} 25. axb5 {[%emt 0:00:30]} axb5 {[%emt 0:00:30]} 26. Ra2 {[%emt 0:02:30]} Rb8 {[%emt 0:11:30]} 27. Rea1 {[%emt 0:03:30]} Rc7 {[%emt 0:00:30]} 28. Ra6 {[%emt 0:05:30]} Qc5 {[%emt 0:00:30]} 29. Nf1 {[%emt 0:00:30]} Bc8 {[%emt 0:00:30]} 30. R6a5 {[%emt 0:01:30]} Rcb7 {[%emt 0:06:30]} 31. Ne3 {[%emt 0:03:30]} Bd8 {[%emt 0:01:30]} 32. Ra6 {[%emt 0:02:30]} Rc7 {[%emt 0:00:30]} 33. R6a2 {[%emt 0:03:30]} Kh7 {[%emt 0:03:30]} 34. Bd1 {[%emt 0:03:30]} g6 {[%emt 0:02:30]} 35. Qf3 {[%emt 0:02:18]} Kg7 {[%emt 0:00:30]} 36. Nc2 {[%emt 0:00:45]} f5 {[%emt 0:03:07]} 37. exf5 {[%emt 0:02:10]} Rf7 {[%emt 0:03:14]} 38. Nb4 {[%emt 0:02:15]} Rxf5 {[%emt 0:01:32]} 39. Ra7+ {[%emt 0:02:09]} Rb7 {[%emt 0:00:20]} 40. Rxb7+ {[%emt 0:00:31]} Bxb7 {[%emt 0:00:02]} 41. Qe3 {[%emt 0:00:39]} Qxe3 {[%emt 0:00:56]} 42. fxe3 {[%emt 0:00:30]} Bb6 {[%emt 0:00:00]} 43. Bc2 {[%emt 0:01:43]} Bxe3+ {[%emt 0:00:00]} 44. Kh2 {[%emt 0:00:37]} Rf2 {[%emt 0:03:05]} 45. Ra5 {[%emt 0:00:56]} Bc5 {[%emt 0:00:17]} 46. Rxb5 {[%emt 0:01:37]} Bc8 {[%emt 0:00:01]} 47. Rb8 {[%emt 0:00:06]} Bxb4 {[%emt 0:01:04]} 48. Rxc8 {[%emt 0:01:27]} Bc5 {[%emt 0:00:17]} 49. b4 {[%emt 0:04:35]} cxb3 {[%emt 0:05:45]} 50. Bxb3 {[%emt 0:00:06]} Rb2 {[%emt 0:00:10]} 51. Ba4 {[%emt 0:00:44]} e4 {[%emt 0:00:28]} 52. Re8 {[%emt 0:02:36]} e3 {[%emt 0:00:00]} 53. Bd7 {[%emt 0:00:41]} h5 {[%emt 0:01:57]} 54. Re7+ {[%emt 0:01:26]} Kh6 {[%emt 0:04:10]} 55. Bc8 {[%emt 0:03:00]} Rc2 {[%emt 0:00:51]} 56. Kg3 {[%emt 0:00:32]} Rxc3 {[%emt 0:00:19]} 57. Kf3 {[%emt 0:00:31]} Rc2 {[%emt 0:01:07]} 58. Re6 {[%emt 0:00:30]} h4 {[%emt 0:00:46]} 59. Re4 {[%emt 0:00:34]} Rf2+ {[%emt 0:00:41]} 60. Kg4 {[%emt 0:00:30]} Rxg2+ {[%emt 0:00:00]} 61. Kf3 {[%emt 0:00:00]} Rf2+ {[%emt 0:00:07]} 62. Kg4 {[%emt 0:00:00]} Rg2+ {[%emt 0:01:15]} 63. Kf3 {[%emt 0:00:32]} Rd2 {[%emt 0:00:02]} 64. Rxh4+ {[%emt 0:00:26]} Kg5 {[%emt 0:00:19]} 65. Rg4+ {[%emt 0:00:13]} Kh5 {[%emt 0:00:21]} 66. Bb7 {[%emt 0:01:22]} Rf2+ {[%emt 0:00:15]} 67. Kg3 {[%emt 0:00:32]} e2 {[%emt 0:00:55]} 68. Re4 {[%emt 0:00:18]} e1=Q {[%emt 0:00:37]} 69. Rxe1 {[%emt 0:00:39]} Rb2 {[%emt 0:00:01]} 70. Re7 {[%emt 0:00:00]} 1/2-1/2

[Event "Turkish Youth Championship 2024"]
[Site "Samsun"]
[Date "2024.05.21"]
[Round "6"]
[White "Yildirim, Orhun Ali"]
[Black "Gulbas, Isa"]
[Result "0-1"]
[ECO "A45"]
[WhiteElo "1561"]
[BlackElo "1813"]
[Annotator "NA RC"]
[PlyCount "56"]
[EventDate "2024.05.18"]
[EventType "swiss"]
[EventCountry "TUR"]
[SourceTitle "playchess.com"]
[Source "ChessBase"]
[SourceQuality "1"]
[TimeControl "5400+30"]

1. d4 {[%emt 0:01:00]} Nf6 {[%emt 0:01:00]} 2. Bf4 {[%emt 0:00:00]} e6 {[%emt 0:00:00]} 3. e3 {[%emt 0:00:00]} c5 {[%emt 0:00:00]} 4. c3 {[%emt 0:00:30]} Qb6 {[%emt 0:02:30]} 5. Qc2 {[%emt 0:02:30]} Nh5 {[%emt 0:03:30]} 6. Bg3 {[%emt 0:01:30]} Nxg3 {[%emt 0:06:30]} 7. hxg3 {[%emt 0:00:30]} g6 {[%emt 0:00:30]} 8. Nf3 {[%emt 0:00:30]} Bg7 {[%emt 0:00:30]} 9. Nbd2 {[%emt 0:00:30]} d5 {[%emt 0:02:30]} 10. dxc5 {[%emt 0:10:30]} Qxc5 {[%emt 0:00:00]} 11. e4 {[%emt 0:00:30]} Nc6 {[%emt 0:07:00]} 12. exd5 {[%emt 0:03:30]} exd5 {[%emt 0:00:30]} 13. Nb3 {[%emt 0:07:30]} Qe7+ {[%emt 0:05:30]} 14. Qe2 {[%emt 0:00:30]} Be6 {[%emt 0:00:30]} 15. O-O-O {[%emt 0:06:30]} O-O {[%emt 0:03:30]} 16. Qb5 {[%emt 0:03:30]} d4 {[%emt 0:09:30]} 17. Nfxd4 {[%emt 0:10:30]} Nxd4 {[%emt 0:01:30]} 18. cxd4 {[%emt 0:05:30]} Qf6 {[%emt 0:05:30]} 19. f4 {[%emt 0:08:30]} Rfd8 {[%emt 0:01:30]} 20. Kb1 {[%emt 0:18:18]} a6 {[%emt 0:07:30]} 21. Qb4 {[%emt 0:02:24]} a5 {[%emt 0:01:30]} 22. Qd2 {[%emt 0:01:30]} a4 {[%emt 0:02:30]} 23. Nc5 {[%emt 0:01:16]} Bf5+ {[%emt 0:07:30]} 24. Ka1 {[%emt 0:00:12]} b6 {[%emt 0:08:30]} 25. Na6 {[%emt 0:00:05]} a3 {[%emt 0:00:30]} 26. Bb5 {[%emt 0:06:29]} Rxd4 {[%emt 0:01:30]} 27. Qxd4 {[%emt 0:02:17]} Qxd4 {[%emt 0:00:30]} 28. Rxd4 {[%emt 0:00:09]} Bxd4 {[%emt 0:00:00]} 0-1

[Event "Turkish Youth Championship 2024"]
[Site "Samsun"]
[Date "2024.05.21"]
[Round "6"]
[White "Ozer, Yigit Eren"]
[Black "Sadik, Muhammed Selim"]
[Result "0-1"]
[ECO "B22"]
[WhiteElo "1519"]
[BlackElo "1734"]
[Annotator "NA RC"]
[PlyCount "132"]
[EventDate "2024.05.18"]
[EventType "swiss"]
[EventCountry "TUR"]
[SourceTitle "playchess.com"]
[Source "ChessBase"]
[SourceQuality "1"]
[TimeControl "5400+30"]

1. e4 {[%emt 0:01:00]} c5 {[%emt 0:01:00]} 2. c3 {[%emt 0:00:00]} Nf6 {[%emt 0:00:30]} 3. e5 {[%emt 0:00:00]} Nd5 {[%emt 0:00:00]} 4. d4 {[%emt 0:00:30]} cxd4 {[%emt 0:00:00]} 5. Nf3 {[%emt 0:00:00]} Nc6 {[%emt 0:00:30]} 6. cxd4 {[%emt 0:03:00]} d6 {[%emt 0:06:30]} 7. Be2 {[%emt 0:06:30]} dxe5 {[%emt 0:01:30]} 8. dxe5 {[%emt 0:00:30]} g6 {[%emt 0:00:30]} 9. Bc4 {[%emt 0:17:30]} Be6 {[%emt 0:00:30]} 10. Qb3 {[%emt 0:06:30]} Ndb4 {[%emt 0:06:30]} 11. Bxe6 {[%emt 0:05:30]} fxe6 {[%emt 0:01:30]} 12. O-O {[%emt 0:01:30]} Qd5 {[%emt 0:00:00]} 13. Rd1 {[%emt 0:07:30]} Qxb3 {[%emt 0:01:00]} 14. axb3 {[%emt 0:01:30]} Bg7 {[%emt 0:00:30]} 15. Bf4 {[%emt 0:00:30]} O-O {[%emt 0:00:30]} 16. Bg3 {[%emt 0:00:30]} Nc2 {[%emt 0:06:30]} 17. Ra4 {[%emt 0:00:30]} Rfd8 {[%emt 0:00:30]} 18. Rd2 {[%emt 0:01:30]} N2b4 {[%emt 0:12:30]} 19. Nc3 {[%emt 0:12:30]} Rxd2 {[%emt 0:03:30]} 20. Nxd2 {[%emt 0:00:30]} Rd8 {[%emt 0:00:00]} 21. Nde4 {[%emt 0:13:30]} Nd3 {[%emt 0:04:00]} 22. f4 {[%emt 0:02:54]} Bh6 {[%emt 0:03:30]} 23. Nf2 {[%emt 0:10:40]} Nc5 {[%emt 0:00:30]} 24. Ra3 {[%emt 0:01:00]} Rd2 {[%emt 0:01:30]} 25. Nfd1 {[%emt 0:02:18]} Nd3 {[%emt 0:00:30]} 26. Ra1 {[%emt 0:03:58]} Nxf4 {[%emt 0:01:30]} 27. Ne3 {[%emt 0:01:34]} Nxe5 {[%emt 0:02:30]} 28. Rf1 {[%emt 0:00:31]} Ne2+ {[%emt 0:00:30]} 29. Nxe2 {[%emt 0:00:11]} Bxe3+ {[%emt 0:00:30]} 30. Kh1 {[%emt 0:00:32]} Nd3 {[%emt 0:00:30]} 31. Nc3 {[%emt 0:00:48]} Nxb2 {[%emt 0:00:30]} 32. Ne4 {[%emt 0:00:25]} Rd1 {[%emt 0:00:30]} 33. Rxd1 {[%emt 0:00:36]} Nxd1 {[%emt 0:00:30]} 34. Bh4 {[%emt 0:00:06]} Kf7 {[%emt 0:00:00]} 35. Ng5+ {[%emt 0:00:06]} Bxg5 {[%emt 0:00:00]} 36. Bxg5 {[%emt 0:00:08]} Nf2+ {[%emt 0:00:30]} 37. Kg1 {[%emt 0:00:30]} Ne4 {[%emt 0:00:00]} 38. Be3 {[%emt 0:00:00]} b6 {[%emt 0:00:00]} 39. Kf1 {[%emt 0:00:07]} e5 {[%emt 0:00:30]} 40. Ke2 {[%emt 0:00:44]} Ke6 {[%emt 0:00:00]} 41. Kd3 {[%emt 0:00:23]} Kd5 {[%emt 0:00:00]} 42. b4 {[%emt 0:00:00]} Nd6 {[%emt 0:00:30]} 43. g4 {[%emt 0:00:37]} Nc4 {[%emt 0:00:30]} 44. Bc1 {[%emt 0:01:09]} e4+ {[%emt 0:00:00]} 45. Kc3 {[%emt 0:00:21]} a5 {[%emt 0:00:00]} 46. bxa5 {[%emt 0:00:04]} bxa5 {[%emt 0:00:30]} 47. h4 {[%emt 0:00:17]} e3 {[%emt 0:00:30]} 48. Kd3 {[%emt 0:00:10]} a4 {[%emt 0:00:00]} 49. h5 {[%emt 0:00:52]} a3 {[%emt 0:00:00]} 50. Bxa3 {[%emt 0:00:03]} Nxa3 {[%emt 0:00:00]} 51. Kxe3 {[%emt 0:00:09]} e5 {[%emt 0:00:00]} 52. hxg6 {[%emt 0:00:10]} hxg6 {[%emt 0:00:00]} 53. g5 {[%emt 0:00:00]} Nc4+ {[%emt 0:00:00]} 54. Kd3 {[%emt 0:00:36]} e4+ {[%emt 0:00:30]} 55. Ke2 {[%emt 0:00:30]} Kd4 {[%emt 0:00:00]} 56. Ke1 {[%emt 0:00:00]} Kd3 {[%emt 0:00:00]} 57. Kd1 {[%emt 0:00:00]} e3 {[%emt 0:00:00]} 58. Ke1 {[%emt 0:00:00]} Nd2 {[%emt 0:00:00]} 59. Kd1 {[%emt 0:00:01]} e2+ {[%emt 0:00:30]} 60. Ke1 {[%emt 0:00:05]} Nc4 {[%emt 0:00:30]} 61. Kf2 {[%emt 0:00:10]} Kd2 {[%emt 0:00:00]} 62. Kf3 {[%emt 0:00:09]} e1=Q {[%emt 0:00:00]} 63. Kg4 {[%emt 0:00:15]} Ke3 {[%emt 0:00:30]} 64. Kh3 {[%emt 0:00:35]} Kf3 {[%emt 0:00:30]} 65. Kh2 {[%emt 0:00:05]} Qa1 {[%emt 0:00:00]} 66. Kh3 {[%emt 0:00:00]} Qh1# {[%emt 0:00:00]} 0-1

[Event "Turkish Youth Championship 2024"]
[Site "Samsun"]
[Date "2024.05.22"]
[Round "7"]
[White "Yilmaz, Kerem Tuna"]
[Black "Ozmen, Sevket Mert"]
[Result "0-1"]
[ECO "B36"]
[WhiteElo "2039"]
[BlackElo "1749"]
[Annotator "RC"]
[PlyCount "56"]
[EventDate "2024.05.18"]
[EventType "swiss"]
[EventCountry "TUR"]
[SourceTitle "playchess.com"]
[Source "ChessBase"]
[SourceQuality "1"]
[TimeControl "5400+30"]

1. e4 {[%emt 0:01:00]} c5 {[%emt 0:01:00]} 2. Nf3 {[%emt 0:00:30]} Nc6 {[%emt 0:00:00]} 3. d4 {[%emt 0:00:00]} cxd4 {[%emt 0:00:00]} 4. Nxd4 {[%emt 0:00:00]} g6 {[%emt 0:00:30]} 5. c4 {[%emt 0:00:00]} Nf6 {[%emt 0:00:00]} 6. Nc3 {[%emt 0:00:00]} Nxd4 {[%emt 0:01:00]} 7. Qxd4 {[%emt 0:00:30]} d6 {[%emt 0:00:30]} 8. Be2 {[%emt 0:00:30]} Bg7 {[%emt 0:00:00]} 9. Be3 {[%emt 0:00:00]} O-O {[%emt 0:00:00]} 10. Qd3 {[%emt 0:00:00]} Be6 {[%emt 0:00:00]} 11. O-O {[%emt 0:00:00]} Qa5 {[%emt 0:00:00]} 12. Bd4 {[%emt 0:00:00]} Rfc8 {[%emt 0:00:30]} 13. b3 {[%emt 0:00:30]} a6 {[%emt 0:00:30]} 14. f4 {[%emt 0:08:30]} Qd8 {[%emt 0:34:30]} 15. f5 {[%emt 0:15:30]} Bd7 {[%emt 0:04:30]} 16. h4 {[%emt 0:04:30]} Bc6 {[%emt 0:08:30]} 17. h5 {[%emt 0:06:30]} g5 {[%emt 0:05:30]} 18. Qe3 {[%emt 0:12:30]} h6 {[%emt 0:02:30]} 19. e5 {[%emt 0:03:30]} dxe5 {[%emt 0:01:30]} 20. Bxe5 {[%emt 0:00:30]} b5 {[%emt 0:11:30]} 21. Rfd1 {[%emt 0:08:30]} Qa5 {[%emt 0:02:30]} 22. Nd5 {[%emt 0:13:30]} Bxd5 {[%emt 0:07:41]} 23. cxd5 {[%emt 0:00:00]} Rc2 {[%emt 0:01:48]} 24. d6 {[%emt 0:04:00]} exd6 {[%emt 0:00:52]} 25. Rxd6 {[%emt 0:01:30]} Rxa2 {[%emt 0:05:33]} 26. Rxa2 {[%emt 0:03:37]} Qe1+ {[%emt 0:00:31]} 27. Kh2 {[%emt 0:04:26]} Ng4+ {[%emt 0:00:30]} 28. Bxg4 {[%emt 0:00:00]} Bxe5+ {[%emt 0:00:00]} 0-1

[Event "Turkish Youth Championship 2024"]
[Site "Samsun"]
[Date "2024.05.22"]
[Round "7"]
[White "Danaci, Ege"]
[Black "Ilgaz, Yusuf Kerem"]
[Result "1/2-1/2"]
[ECO "C80"]
[WhiteElo "2031"]
[BlackElo "1964"]
[Annotator "NA RC"]
[PlyCount "109"]
[EventDate "2024.05.18"]
[EventType "swiss"]
[EventCountry "TUR"]
[SourceTitle "playchess.com"]
[Source "ChessBase"]
[SourceQuality "1"]
[TimeControl "5400+30"]

1. e4 {[%emt 0:01:00]} e5 {[%emt 0:01:00]} 2. Nf3 {[%emt 0:00:00]} Nc6 {[%emt 0:00:30]} 3. Bb5 {[%emt 0:00:00]} a6 {[%emt 0:00:00]} 4. Ba4 {[%emt 0:00:30]} Nf6 {[%emt 0:00:00]} 5. O-O {[%emt 0:00:30]} Nxe4 {[%emt 0:00:00]} 6. Re1 {[%emt 0:04:30]} Nc5 {[%emt 0:00:00]} 7. Bxc6 {[%emt 0:01:30]} dxc6 {[%emt 0:00:00]} 8. Nxe5 {[%emt 0:02:30]} Be7 {[%emt 0:00:00]} 9. b3 {[%emt 0:05:30]} O-O {[%emt 0:03:30]} 10. Bb2 {[%emt 0:00:00]} Re8 {[%emt 0:07:30]} 11. d3 {[%emt 0:08:00]} f6 {[%emt 0:05:30]} 12. Nc4 {[%emt 0:07:30]} Bf8 {[%emt 0:02:30]} 13. Nbd2 {[%emt 0:01:30]} Rxe1+ {[%emt 0:07:30]} 14. Qxe1 {[%emt 0:00:00]} a5 {[%emt 0:01:30]} 15. Ne4 {[%emt 0:06:00]} a4 {[%emt 0:06:30]} 16. Rd1 {[%emt 0:16:30]} axb3 {[%emt 0:02:30]} 17. axb3 {[%emt 0:00:30]} Ne6 {[%emt 0:04:30]} 18. d4 {[%emt 0:02:30]} Nf4 {[%emt 0:05:30]} 19. Bc1 {[%emt 0:05:30]} Nd5 {[%emt 0:01:30]} 20. Ne3 {[%emt 0:02:30]} Qe7 {[%emt 0:09:30]} 21. f3 {[%emt 0:01:30]} Ra1 {[%emt 0:03:30]} 22. Bd2 {[%emt 0:04:30]} Nxe3 {[%emt 0:13:30]} 23. Bxe3 {[%emt 0:00:00]} Ra2 {[%emt 0:00:30]} 24. c4 {[%emt 0:00:00]} Bf5 {[%emt 0:06:03]} 25. Bf4 {[%emt 0:12:57]} Qa3 {[%emt 0:02:47]} 26. Nd2 {[%emt 0:03:11]} Qb2 {[%emt 0:02:25]} 27. Qe3 {[%emt 0:00:47]} Qc2 {[%emt 0:01:31]} 28. Qe2 {[%emt 0:00:56]} Qc3 {[%emt 0:03:17]} 29. Qe3 {[%emt 0:01:31]} Qc2 {[%emt 0:00:46]} 30. Qe2 {[%emt 0:00:49]} h6 {[%emt 0:01:46]} 31. c5 {[%emt 0:01:55]} Kh7 {[%emt 0:03:35]} 32. Re1 {[%emt 0:00:51]} g5 {[%emt 0:03:50]} 33. Be3 {[%emt 0:03:49]} Bd3 {[%emt 0:01:40]} 34. Qf2 {[%emt 0:00:07]} Qc3 {[%emt 0:01:21]} 35. f4 {[%emt 0:01:36]} Ra1 {[%emt 0:01:18]} 36. fxg5 {[%emt 0:00:31]} Rxe1+ {[%emt 0:00:37]} 37. Qxe1 {[%emt 0:00:02]} fxg5 {[%emt 0:00:52]} 38. Qg3 {[%emt 0:00:08]} Qc1+ {[%emt 0:00:33]} 39. Kf2 {[%emt 0:00:04]} Qd1 {[%emt 0:00:00]} 40. Qf3 {[%emt 0:00:50]} Qxf3+ {[%emt 0:00:09]} 41. Kxf3 {[%emt 0:00:13]} Kg6 {[%emt 0:00:49]} 42. Bf2 {[%emt 0:00:16]} Be7 {[%emt 0:00:16]} 43. Bg3 {[%emt 0:00:33]} Bd8 {[%emt 0:00:01]} 44. Ke3 {[%emt 0:00:00]} Bc2 {[%emt 0:00:13]} 45. b4 {[%emt 0:00:14]} b6 {[%emt 0:01:21]} 46. Nc4 {[%emt 0:00:33]} Ba4 {[%emt 0:00:46]} 47. Ne5+ {[%emt 0:05:01]} Kf6 {[%emt 0:00:11]} 48. h4 {[%emt 0:00:25]} Ke6 {[%emt 0:00:33]} 49. h5 {[%emt 0:00:10]} Kd5 {[%emt 0:00:44]} 50. Nf7 {[%emt 0:04:14]} Be7 {[%emt 0:00:31]} 51. Bxc7 {[%emt 0:00:27]} bxc5 {[%emt 0:00:11]} 52. bxc5 {[%emt 0:01:08]} Bd1 {[%emt 0:00:28]} 53. Bd6 {[%emt 0:00:38]} Bf6 {[%emt 0:00:37]} 54. Be5 {[%emt 0:00:05]} Bxe5 {[%emt 0:00:30]} 55. Nxe5 {[%emt 0:00:32]} 1/2-1/2